Cogmind - Beta 11.1 @@@ ROGUE MODE // 2022.09.01 @ 19:43:26 Player: Hemlokk Result: Destroyed by G-34 Mercenary with Small Laser Performance ------------- Evolutions (0) 0 Regions Visited (3) 600 Robots Destroyed (15) 75 Value Destroyed (353) 353 Prototype IDs (1) 20 Alien Tech Used (0) 0 Bonus (300) 300 TOTAL SCORE: 1348 Bonus ------- Aligned with FarCom 300 Cogmind --------- Core Integrity 0/250 Matter 176/300 Energy 100/100 System Corruption 2% Temperature Cool (6) Movement Core (700) Ox13 Location -10/Exiles Parts ------- > --- POWER (1) -------- (None) > --- PROPULSION (2) --- (None) > --- UTILITY (2) ------ High-capacity Storage Unit Skeleton Box > --- WEAPON (2) ------- (None) > --- INVENTORY (20) --- Light Nuclear Core Improved Heat Sink Transport Network Coupler Light Assault Rifle Heavy Assault Rifle Heavy Assault Rifle Heavy Assault Rifle Heavy Assault Rifle Autogun Autogun Autogun Autogun Grenade Launcher Grenade Launcher Peak State ------------ > --- POWER ------------ Ion Engine > --- PROPULSION ------- Light Treads Light Treads > --- UTILITY ---------- High-capacity Storage Unit Visual Processing Unit > --- WEAPON ----------- Particle Gun Assault Rifle > --- INVENTORY -------- Light Nuclear Core Light Treads Light Treads Light Treads Improved Heat Sink Transport Network Coupler Skeleton Box Light Assault Rifle Heavy Assault Rifle Heavy Assault Rifle Heavy Assault Rifle Heavy Assault Rifle Autogun Autogun Autogun Autogun Grenade Launcher Grenade Launcher [Rating: 12] Favorites ----------- Power Ion Engine Engine Ion Engine Propulsion Light Treads Treads Light Treads Wheel Wheel Utility High-capacity Storage Unit Device Weight Redist. System Storage High-capacity Storage Unit Processor Signal Interpreter Weapon Particle Gun Energy Gun Particle Gun Ballistic Gun Assault Rifle Build | -11 -10 -10 -10 ------- Run | Scr Mat Min Exi Slots Evolved . | . . . . Power . | . . . . Propulsion . | . . . . Utility . | . . . . Weapon . | . . . . Parts Attached 35 | 6 25 . 4 Power 5 | 1 4 . . Engine 5 | 1 4 . . Core . | . . . . Reactor . | . . . . Propulsion 14 | 2 9 . 3 Treads 11 | . 8 . 3 Leg . | . . . . Wheel 3 | 2 1 . . Hover . | . . . . Flight . | . . . . Utility 7 | 1 5 . 1 Device 2 | . 1 . 1 Storage 3 | 1 2 . . Processor 2 | . 2 . . Hackware . | . . . . Protection . | . . . . Artifact . | . . . . Weapon 9 | 2 7 . . Energy Gun 4 | 1 3 . . Energy Cannon . | . . . . Ballistic Gun 5 | 1 4 . . Ballistic Cannon . | . . . . Launcher . | . . . . Special Weapon . | . . . . Impact Weapon . | . . . . Slashing Weapon . | . . . . Piercing Weapon . | . . . . Special Melee Weapon . | . . . . Unidentified Prototypes 1 | . . . 1 Parts Lost 9 | . 2 . 7 Power 1 | . . . 1 Propulsion 5 | . 1 . 4 Utility 1 | . 1 . . Weapon 2 | . . . 2 Highest Loss Streak 7 | . 1 . 7 To Critical Strikes . | . . . . Average Slot Usage (%) 96 | . 94 100 98 Engine 13 | . 13 14 13 Treads 23 | . 20 28 27 Wheel 3 | . 6 . . Storage 14 | . 14 14 14 Processor 12 | . 11 14 14 Energy Gun 13 | . 12 14 13 Ballistic Gun 14 | . 14 14 13 Naked Turns . | . . . . Heaviest Build 50 | 14 50 50 50 Greatest Support 40 | 20 40 40 40 Greatest Overweight (x) 15 | 1 15 1 13 Average Overweight (x) . | . . 1 1 Largest Inventory Capacity 20 | 8 20 20 20 Average Capacity 18 | 7 18 20 20 Most Carried 19 | 3 19 17 18 Average Carried 14 | 1 14 17 17 Final Capacity 20 | 8 20 20 20 Final Carried 17 | 3 17 17 14 Class Distribution -------------------- 94% | Mutant 5% | Scavenger-Mutant Dominant Class ---------------- Mutant | -10/Materials Mutant | -10/Mines Mutant | -10/Exiles Resources | -11 -10 -10 -10 ----------- Run | Scr Mat Min Exi Matter Collected 501 | 258 243 . . Remotely . | . . . . Salvage Created 562 | . 523 . 39 Parts 46 | . 42 . 4 Haulers Intercepted 2 | . 2 . . Recyclers Shooed . | . . . . Parts Field Recycled . | . . . . Retrieved Matter . | . . . . Parts Self-Destructed . | . . . . Prevented . | . . . . Kills | -11 -10 -10 -10 ------- Run | Scr Mat Min Exi Combat Hostiles Destroyed 11 | . 10 . 1 Guns 9 | . 8 . 1 AOE 2 | . 2 . . Classes Destroyed 5 | . 5 . . Builder 1 | . 1 . . Hauler 2 | . 2 . . Watcher 1 | . 1 . . Swarmer 3 | . 3 . . Grunt 8 | . 7 . 1 Best Kill Streak 8 | . 8 . 1 Combat Bots Only 5 | . 5 . 1 Max Kills in Single Turn 2 | . 2 . 1 Gunslinging 1 | . 1 . . Exploded 2 | . 2 . . Melee . | . . . . Uniques/NPCs Destroyed . | . . . . Combat | -11 -10 -10 -10 -------- Run | Scr Mat Min Exi Damage Taken 1237 | . 408 . 829 Core 258 | . 69 . 189 Absorbed by Shields . | . . . . Regen/Repaired (Parts) 26 | . 26 . . Core Remaining (%) 100 | 100 . . . Volleys Fired 37 | . 34 . 3 Largest 2 | . 2 . 2 Hottest 85 | . 85 . 85 Shots Fired 73 | . 68 . 5 Gun 73 | . 68 . 5 Cannon . | . . . . Launcher . | . . . . Special . | . . . . Kinetic 45 | . 42 . 3 Thermal 10 | . 8 . 2 Explosive . | . . . . Electromagnetic 18 | . 18 . . Robot Hit Streak 7 | . 7 . 4 Robot Miss Streak 4 | . 4 . 1 Penetration Max . | . . . . Secondary Targets 2 | . 2 . . Max Gunslinging Chain 1 | . 1 . . Shots Hit Robots 45 | . 41 . 4 Core Hits 26 | . 23 . 3 Critical Kills . | . . . . Critical Parts Destroyed . | . . . . Critical Strikes 1 | . 1 . . Burn 1 | . 1 . . Melee Attacks . | . . . . Impact . | . . . . Slashing . | . . . . Piercing . | . . . . Sneak Attacks . | . . . . Combat Hostiles . | . . . . Follow-up Attacks . | . . . . Damage Inflicted 619 | . 563 . 56 Guns 560 | . 504 . 56 Cannons . | . . . . Explosions 59 | . 59 . . Melee . | . . . . Ramming . | . . . . Kinetic 300 | . 261 . 39 Thermal 166 | . 149 . 17 Explosive . | . . . . Electromagnetic 153 | . 153 . . Impact . | . . . . Slashing . | . . . . Piercing . | . . . . Highest Corruption 2 | . . . 2 Average Corruption 1 | . . . 1 Corruption Purged . | . . . . Corruption Blocked . | . . . . Effects 1 | . . . 1 Parts Rejected 1 | . . . 1 Overload Shots . | . . . . Overflow Damage . | . . . . Projectiles . | . . . . Explosions . | . . . . Melee . | . . . . Knockbacks . | . . . . Impact . | . . . . Kinetic . | . . . . Secondary . | . . . . Self-Inflicted Damage . | . . . . Shots . | . . . . Rammed . | . . . . Targets Rammed . | . . . . Kicked . | . . . . Crushed . | . . . . Highest Temperature 114 | . 114 . 60 Average Temperature 42 | . 43 . 32 Received Heat Transfer 306 | . 216 . 90 Siege Activations . | . . . . Robots Corrupted . | . . . . Combat Hostiles . | . . . . Parts Fried . | . . . . Impact Corruptions . | . . . . Robots Melted . | . . . . Combat Hostiles . | . . . . Parts Melted 1 | . 1 . . Heat Transferred 383 | . 346 . 37 Parts Sabotaged . | . . . . Parts Stolen . | . . . . Parts Stripped . | . . . . Power Chain Reactions 1 | . 1 . . Missiles Intercepted . | . . . . Alert | -11 -10 -10 -10 ------- Run | Scr Mat Min Exi Peak Influence 237 | . 237 . . Initial . | . . . . Average 66 | . 77 . . Maximum Alert Level 1 | . 1 . . Low Security (%) 86 | 100 84 100 . Level 1 13 | . 15 . . Level 2 . | . . . . Level 3 . | . . . . Level 4 . | . . . . Level 5 . | . . . . High Security . | . . . . Max Security . | . . . . Squads Dispatched 2 | . 2 . . Investigation 1 | . 1 . . Extermination . | . . . . Reinforcement 1 | . 1 . . Assault . | . . . . Garrison . | . . . . Intercept . | . . . . Searches Triggered . | . . . . Construction Impeded . | . . . . Haulers Reinforced . | . . . . Active Scanning Responses . | . . . . Cargo Convoy Interrupts . | . . . . Stealth | -11 -10 -10 -10 --------- Run | Scr Mat Min Exi Distress Signals 1 | . 1 . . Communications Jammed . | . . . . Distress Signals . | . . . . Times Spotted 28 | . 16 . 12 Peak Tracking Total 11 | . 3 . 11 Tactical Retreats . | . . . . Traps | -11 -10 -10 -10 ------- Run | Scr Mat Min Exi Traps Triggered 5 | . 5 . . Indirectly . | . . . . Trap Hack Attempts . | . . . . Triggered . | . . . . Disarmed . | . . . . Reprogrammed . | . . . . Reused . | . . . . Traps Extracted . | . . . . Installed . | . . . . Triggered . | . . . . Exploded 1 | . . . 1 Machines | -11 -10 -10 -10 ---------- Run | Scr Mat Min Exi Machines Disabled . | . . . . Max in Single Turn . | . . . . Machines Sabotaged . | . . . . Garrisons Compromised . | . . . . Overloaded Fab Kills . | . . . . Hacking | -11 -10 -10 -10 --------- Run | Scr Mat Min Exi Machines Accessed 10 | . 7 . 3 Terminals 5 | . 5 . . Fabricators . | . . . . Repair Stations 1 | . 1 . . Recycling Units 1 | . 1 . . Scanalyzers . | . . . . Garrison Access . | . . . . Total Hacks 32 | . 14 . 18 Successful 27 | . 9 . 18 Failed 5 | . 5 . . Catastrophic 2 | . 2 . . Database Lockouts . | . . . . Manual 5 | . 4 . 1 Terminals 10 | . 10 . . Fabricators . | . . . . Repair Stations 3 | . 3 . . Recycling Units 1 | . 1 . . Scanalyzers . | . . . . Garrison Access . | . . . . Terminal Hacks 23 | . 5 . 18 Record 19 | . 1 . 18 Branch Access Points 1 | . 1 . . Alert Level 1 | . 1 . . Registered Components 1 | . 1 . . Zone Layout 1 | . 1 . . Fabricator Hacks . | . . . . Repair Station Hacks 2 | . 2 . . Scan Component 1 | . 1 . . Repair 1 | . 1 . . Recycling Unit Hacks 1 | . 1 . . Report Inventory 1 | . 1 . . Scanalyzer . | . . . . Garrison Access Hacks . | . . . . Unauthorized Hacks 1 | . 1 . . Terminals 1 | . 1 . . Track 1 | . 1 . . Fabricators . | . . . . Repair Stations . | . . . . Recycling Units . | . . . . Scanalyzers . | . . . . Garrison Access . | . . . . Data Cores Recovered . | . . . . Used . | . . . . Hacking Detections 5 | . 5 . . Full Trace Events 1 | . 1 . . Feedback Events . | . . . . Feedback Blocked . | . . . . Robot Schematics Acquired . | . . . . Robots Built . | . . . . Authchips . | . . . . Time . | . . . . Total Robot Build Rating . | . . . . Part Schematics Acquired . | . . . . Parts Built . | . . . . Authchips . | . . . . Time . | . . . . Total Part Build Rating . | . . . . Parts Repaired 1 | . 1 . . Time 32 | . 32 . . Parts Recycled . | . . . . Recycled Matter . | . . . . Retrieved Matter . | . . . . Retrieved Components . | . . . . Parts Scanalyzed . | . . . . Part Schematics Acquired . | . . . . Parts Damaged . | . . . . Bothacking | -11 -10 -10 -10 ------------ Run | Scr Mat Min Exi Used RIF Installer . | . . . . Robots Hacked . | . . . . Non-combat . | . . . . Combat . | . . . . Robot Hacks Applied . | . . . . Relay Couplers Released . | . . . . Fabnet Peak Effective % . | . . . . Robots Rewired . | . . . . Allies Hacked . | . . . . Hacks Repelled . | . . . . Allies | -11 -10 -10 -10 -------- Run | Scr Mat Min Exi Total Allies . | . . . . Largest Group . | . . . . Highest-Rated Group . | . . . . Highest-Rated Ally . | . . . . Total Orders . | . . . . Ally Attacks . | . . . . Total Damage . | . . . . Kills . | . . . . Allies Corrupted . | . . . . Allies Melted . | . . . . Intel | -11 -10 -10 -10 ------- Run | Scr Mat Min Exi Robot Analysis Total . | . . . . Derelict Logs Recovered . | . . . . Drone Launches . | . . . . Drone Recoveries . | . . . . Exploration | -11 -10 -10 -10 ------------- Run | Scr Mat Min Exi Turns Passed 2106 | 54 1278 152 622 Spaces Moved 936 | 52 567 64 253 Core 7 | 2 4 . 1 Treads 678 | . 362 64 252 Legs . | . . . . Wheels 251 | 50 201 . . Hover . | . . . . Flight . | . . . . Fastest Speed 50 | 50 80 240 240 Average Speed 201 | 81 189 240 242 Slowest Speed 800 | 95 800 240 700 Overloaded Moves . | . . . . Propulsion Burnouts . | . . . . Robots Hopped . | . . . . Cave-ins Triggered . | . . . . Exploration Rate (%) 33 | 3 68 20 44 Regions Visited 3 Branch Regions 2 Pre-discovered Areas . | . . . . Known Exits Taken 1 | . 1 . . Unknown Exits Taken 2 | 1 . 1 . Scrap Searched . | . . . . Spaces Dug . | . . . . Terrain Destroyed 2 | . 2 . . Melee . | . . . . Projectile . | . . . . AOE 2 | . 2 . . Terrain Rammed . | . . . . Walls Destroyed . | . . . . Machines Disabled . | . . . . Actions | -11 -10 -10 -10 --------- Run | Scr Mat Min Exi Total 1083 | 60 699 63 261 Wait 40 | . 40 . . Move 933 | 51 566 63 253 Hop . | . . . . Pick Up 27 | 3 23 . 1 Fast Attach 21 | 6 15 . . Attach 7 | . 4 . 3 Detach 3 | . 3 . . Swap 7 | . 6 . 1 Drop 8 | . 8 . . Fire 37 | . 34 . 3 Melee . | . . . . Ram . | . . . . Kick . | . . . . Crush . | . . . . Escape Stasis . | . . . . Rewire . | . . . . Trap . | . . . . Miscellaneous . | . . . . Route ------- -11/Scrapyard -10/Materials (discovered 3 exits: *Mat x2 / *Min) -10/Mines -10/Exiles (discovered 1 exit: [*Min]) History --------- Turn | Location | Event 38 | -11/Scrapyard | Discovered new exit (range 15) 55 | -11/Scrapyard | Entered Materials 73 | -10/Materials | Discovered new exit (range 6) 340 | -10/Materials | Identified exit to Mines 458 | -10/Materials | Discovered new exit (range 8) 646 | -10/Materials | Build established: Mutant 655 | -10/Materials | Repaired Particle Gun 1151 | -10/Materials | Discovered new exit (range 10) 1201 | -10/Materials | Identified exit to Materials 1333 | -10/Materials | Entered Mines 1468 | -10/Mines | Deemed a non-threat by the Exiles lab entrance 1470 | -10/Mines | Discovered new exit (range 5) 1485 | -10/Mines | Entered Exiles 1517 | -10/Exiles | Discovered new exit (range 17) 1543 | -10/Exiles | Met 8R-AWN 1584 | -10/Exiles | Met EX-HEX 1651 | -10/Exiles | Met EX-BIN 1694 | -10/Exiles | Aligned with FarCom system 1697 | -10/Exiles | Given EX-Vault access code 1766 | -10/Exiles | Opened EX-Vault 1863 | -10/Exiles | Exiles lab attacked by MAIN.C 1927 | -10/Exiles | Found Prototype Device 2083 | -10/Exiles | Core integrity fell below 50% 2100 | -10/Exiles | Identified Skeleton Box 2106 | -10/Exiles | Core integrity fell below 20% 2107 | -10/Exiles | Destroyed by G-34 Mercenary with Small Laser Last Messages --------------- 02079_ Assault Rifle destroyed. 02082_ Particle Gun destroyed. 02082_ Penetrated by Slug. 02086_ Lgt. Treads destroyed. 02087_ Penetrated by Slug. 02096_ G-34 Mercenary destroyed. 02097_ Penetrated by Slug. 02099_ Lgt. Treads destroyed. 02099_ Ion Engine destroyed. 02100_ Slug penetrates H-55 Commando. 02100_ Discarded Visual Processing Unit. 02100_ Identified Skeleton Box. 02100_ Slug penetrates L-31 Rogue. 02100_ L-31 Rogue suffers critical hit (Destroy). 02100_ Assembled Analyzer disabled. 02103_ Lgt. Treads destroyed. 02104_ G-34 Mercenary destroyed. 02104_ Penetrated by Slug. 02107_ Slug penetrates L-31 Rogue. 02107_ L-31 Rogue suffers critical hit (Destroy). Map ----- +----------------------------------------------------+ | ???#" """"#????????????????????????????? | | ???#" """#????????????????????????????? | | ???#" """#????????????????????????????? | | ???#" """#????????????????????????????? | | ???#" """#????????????????????????????? | | ???#" """## ??????????????????????????? | | ???## """"""??????????????????????????? | | ????# """###??????????????????????????? | | ????#" "X" """"" ??????????????????????????? | | ????#" """ # "??????????????????????????? | | ????#" """""""""#????????????????????????????? | | ???##" ###########????????????????????????????? | | ??##"" #??????????????????????????????????????? | | ###"" #??????????????????????????????????????? | | """"" ##?????????????????????????????????????? | | " "" ##???###########??????????????????????? | | " #####"""""""""##?????????????????????? | | " """ """"##????????????????????? | | "" " #????????????????????? | | " """#????????????????????? | | p "a"#???????????#####????? | | =* *%! " "##?????????##" #????? | | !%[ h[ ! = "###???????#" #????? | | "" """ h [g= """#??????##" ##???? | | ######""" bg l #????### ###?? | | #?????#####""" h @ ##???# ### | | ??????????##""" g ##?## #" | | ???????????#"""" ### | | ???????????#"" ## | | ??????????#"""" = %=% #### | | ?????????"" %[ %= ""#?#"""""## | | ????????" % #"""##?#######? | | ??????? ######?????????? | | ??????? #??????????????? | | ??????? " % ##??????????????? | | ??????? "" "" % ##???????????????? | | ??????? ##""" " " ""#" # ????????????????? | | ??????????####""" """##"" """"####???????????????? | | ?????????????###""""#?#########??????????????????? | | ???????????????####??????????????????????????????? | | ?????????????????????????????????????????????????? | | ?????????????????????????????????????????????????? | | ?????????????????????????????????????????????????? | | ?????????????????????????????????????????????????? | | ?????????????????????????????????????????????????? | | ?????????????????????????????????????????????????? | | ?????????????????????????????????????????????????? | | ?????????????????????????????????????????????????? | | ?????????????????????????????????????????????????? | | ?????????????????????????????????????????????????? | +----------------------------------------------------+ Best States ------------- Heat Dissipation 25 Energy Generation 10 Energy Capacity 250 Matter Stores 300 Matter Capacity 300 Sight Range 18 Terrain Scan Density 10 Additional Mass Support 6 Evasion (%) 44 Recoil Reduction 2 Item Schematics ----------------- None Robot Schematics ------------------ None Fabricated ------------ Nothing Alien Tech Used ----------------- None Achievements -------------- None Challenges ------------ None Game ------ Seed PotentialMagneticNullifier Manual? 0 Play Time 00:20:44 Cumulative 14.5 hours Start 2022.09.01 @ 19:22:02 End 2022.09.01 @ 19:43:26 Sessions 1 Manual Loads 0 Difficulty Rogue Special Mode None Game No. 5 Rogue 2 Adventurer 3 Explorer 0 Win Type - Total 0 Types 0/0/0/0/0/0/0/0/0 Lore% 17 Gallery% 21 Achievement% 16 Wizard Run 0 Options --------- ASCII 0 Keyboard 1 Movement Numpad Keybinds 0 Fullscreen 1 Font 18/SmallcapsGlow Map View 76x50 Tactical HUD 1 Map Filters NONE Filters NONE Steam 1 RUN: ce9bed4d-4424-42fc-abe2-4f6958781d93